bitfinex/quotes_ETHUSD_20240927
["timestamp","ask_amount","ask_price","bid_price","bid_amount"]
[1727465950445,0.368747,2711.8,2711.2,7.27154158]
[1727465950777,4.056437,2711.8,2711.3,0.05881369]
[1727465951071,3.68769,2711.8,2711.2,3.58322158]
[1727465951282,7.3754,2711.8,2711.4,0.05847661]
[1727465951444,8.1928,2711.8,2711.3,0.05853408]
[1727465951769,8.1928,2711.8,2711.4,0.05847661]
[1727465951770,4.50509,2711.8,2711.4,0.05847661]
[1727465951967,4.50509,2711.8,2711.2,7.27152158]
[1727465952167,4.50509,2711.8,2711.5,0.05841915]
[1727465952370,4.50509,2711.8,2711.2,7.27152158]
[1727465952575,4.50509,2711.8,2711.6,0.05836169]
[1727465952756,4.50509,2711.8,2711.2,3.6883]
[1727465952936,4.50509,2711.8,2711.7,0.05830424]
[1727465953136,0.8174,2711.8,2711.2,3.6883]
[1727465953363,4.48613,2711.9,2711.3,0.05853408]
[1727465954072,3.68793,2711.6,2711.3,0.05853408]
[1727465954456,3.68793,2711.6,2711.0,8.03091158]
[1727465954933,3.68793,2711.6,2711.1,0.0578101]
[1727465955139,3.68812,2711.5,2711.1,0.0578101]
[1727465956479,3.68816,2711.4,2711.1,0.0578101]
[1727465957845,3.68827,2711.3,2711.1,0.0578101]
[1727465958281,3.6884,2711.2,2711.1,0.0578101]
[1727465958487,7.37661,2711.3,2711.1,0.0578101]
[1727465958774,3.68826,2711.3,2711.2,0.05757331]
[1727465958955,3.68826,2711.3,2710.7,8.84559658]
[1727465959157,3.68826,2711.3,2710.8,0.05780324]
[1727465959388,3.68826,2711.3,2710.7,8.84559658]
[1727465959550,7.37661,2711.3,2710.9,0.05774575]
[1727465959745,7.37661,2711.3,2710.7,8.03182158]
[1727465959945,7.37661,2711.3,2710.8,0.0577761]
[1727465960159,3.6885,2711.2,2710.7,8.03182158]
[1727465960440,3.6885,2711.2,2710.8,0.0577761]
[1727465960643,3.6886,2711.1,2710.7,4.34282158]
[1727465960887,3.6886,2711.1,2710.9,0.05771861]
[1727465961057,3.6886,2711.1,2710.8,0.0577761]
[1727465961243,3.68826,2711.3,2710.7,8.03189158]
[1727465961444,3.68842,2711.2,2710.7,8.03189158]
[1727465961669,3.68842,2711.2,2710.8,0.0577761]
[1727465961939,3.68842,2711.2,2710.7,8.03189158]
[1727465961940,4.47859,2711.5,2710.7,8.03182158]
[1727465962147,3.68825,2711.4,2711.0,0.7646]
[1727465962382,3.68834,2711.3,2711.1,0.05760365]
[1727465962679,3.6884,2711.2,2711.1,0.05760365]
[1727465963195,3.68868,2711.0,2710.6,0.8248]
[1727465963478,3.68868,2711.0,2710.6,0.89857221]
[1727465965464,3.68882,2710.9,2710.6,0.89857221]
[1727465965745,3.68882,2710.9,2710.0,3.68997]
[1727465965746,3.68932,2710.6,2710.1,3.68982]
[1727465966000,3.68932,2710.6,2709.3,11.04094]
[1727465966001,3.69017,2709.9,2709.8,0.7599]
[1727465966147,3.68998,2710.1,2709.5,4.45059]
[1727465966345,3.69005,2710.0,2709.5,4.45059]
[1727465968553,3.69017,2709.9,2709.5,0.7599]
[1727465968753,3.6898,2710.2,2709.6,0.07380223]
[1727465968980,3.68991,2710.1,2709.6,3.76430223]
[1727465969154,3.6898,2710.2,2709.6,3.76430223]
[1727465969359,3.6898,2710.2,2709.7,0.07379729]
[1727465969555,3.6898,2710.2,2709.5,4.45052]
[1727465969793,3.69001,2710.1,2709.5,8.14112]
[1727465970380,3.69005,2710.0,2709.5,8.14113]
[1727465970580,3.69005,2710.0,2709.5,4.4505]
[1727465970879,3.69005,2710.0,2709.5,8.14113]
[1727465971501,7.37966,2710.2,2709.6,3.69055]
[1727465971687,3.68991,2710.1,2709.6,3.69055]
[1727465972498,3.69005,2710.0,2709.5,4.4505]
[1727465972703,3.69005,2710.0,2709.5,8.14114]
[1727465972898,3.69005,2710.0,2709.5,4.4505]
[1727465973227,7.37968,2710.2,2709.6,3.6905]
[1727465974000,7.37968,2710.2,2709.7,0.05741481]
[1727465974367,3.69003,2710.1,2709.7,0.05741481]
[1727465974568,3.69011,2710.0,2709.5,8.14114]
[1727465974872,3.69011,2710.0,2709.6,0.05747235]
[1727465975071,3.69011,2710.0,2709.6,3.74804235]
[1727465975291,3.69011,2710.0,2709.6,0.05747235]
[1727465975688,3.68986,2710.2,2709.6,3.74802235]
[1727465975988,3.68954,2710.4,2709.9,3.69016]
[1727465976194,3.68954,2710.4,2710.0,0.82449086]
[1727465976396,3.68954,2710.4,2710.0,0.88213935]
[1727465977007,7.37912,2710.4,2710.0,0.80834849]
[1727465977308,3.68963,2710.3,2710.0,0.80834849]
[1727465977497,3.68963,2710.3,2710.0,0.88213955]
[1727465978303,3.68963,2710.3,2710.0,0.80834849]
[1727465978490,3.68963,2710.3,2710.0,0.88214069]
[1727465979511,3.68945,2710.5,2710.0,4.49827849]
[1727465979710,3.68945,2710.5,2710.0,8.64548156]
[1727465980096,3.68949,2710.4,2710.0,4.95552156]
[1727465980615,0.8233,2710.7,2710.0,0.05764849]
[1727465980616,3.68987,2710.2,2710.0,0.05764849]
[1727465980912,3.6899,2710.1,2709.8,0.795]
[1727465981083,3.69004,2710.0,2709.8,0.795]
[1727465981697,7.3799,2710.1,2709.8,0.795]
[1727465981900,3.6901,2710.0,2709.6,0.7914]
[1727465982414,3.6899,2710.1,2709.7,3.76421923]
[1727465983398,3.6899,2710.1,2709.8,0.07379787]
[1727465983980,3.6899,2710.1,2709.7,3.69042]
[1727465985719,3.6899,2710.1,2709.6,4.48195]
[1727465985891,3.68983,2710.2,2709.6,4.48195]
[1727465986097,3.68983,2710.2,2709.7,0.07379659]
[1727465986389,3.68996,2710.1,2709.6,8.17243]
[1727465987210,3.68996,2710.1,2709.6,4.48188]
[1727465987914,3.68976,2710.2,2709.8,3.69028]
[1727465988122,3.68997,2710.1,2709.6,0.7914]
[1727465988295,3.68997,2710.1,2709.6,1.22886216]
[1727465988813,8.20627,2710.3,2709.6,4.91937216]
[1727465989188,3.68991,2710.1,2709.6,1.22886216]
[1727465989407,3.68991,2710.1,2709.7,0.05778941]
[1727465989612,3.68977,2710.2,2709.7,0.05778941]
[1727465990283,3.68996,2710.1,2709.7,0.05778941]
[1727465990917,3.69018,2709.9,2709.7,0.05778941]
[1727465991090,3.6903,2709.8,2709.7,0.05778941]
[1727465991298,3.69061,2709.6,2709.3,0.7909]
[1727465991493,3.69107,2709.3,2709.0,0.7909]
[1727465992190,3.69093,2709.4,2709.0,0.7909]
[1727465993916,3.69188,2708.7,2708.1,0.8014]
[1727465994104,3.69188,2708.7,2708.2,3.69246]
[1727465994685,3.69188,2708.7,2708.1,0.8014]
[1727465995016,3.69225,2708.4,2708.1,0.8014]
[1727465995382,3.69225,2708.4,2707.9,4.49421]
[1727465995680,3.69199,2708.6,2708.0,0.07384588]
[1727465995681,3.69194,2708.6,2708.0,0.07384588]
[1727465995911,3.69182,2708.7,2708.2,3.69246]
[1727465996120,3.69211,2708.5,2708.2,0.369246]
[1727465996431,3.69183,2708.7,2708.2,0.369246]
[1727465996591,7.38375,2708.7,2708.3,0.07383853]
[1727465996794,3.69183,2708.7,2708.3,0.07383853]
[1727465997104,4.46175,2709.0,2708.0,3.69263]
[1727465997286,4.46175,2709.0,2708.1,0.07384209]
[1727465997485,3.69216,2708.5,2708.1,0.07384209]
[1727465997691,3.69216,2708.5,2708.0,3.69263]
[1727465998195,3.69216,2708.5,2708.1,0.0738421]
[1727465999206,3.69195,2708.6,2708.1,3.7663921]
[1727465999705,7.38396,2708.6,2708.1,3.7663921]
[1727466000028,3.6925,2708.2,2707.9,0.8014]
[1727466000229,4.41292158,2708.5,2707.7,3.0]
[1727466000532,4.41292158,2708.5,2707.4,0.7547]
[1727466000533,3.69311,2707.8,2707.4,0.7547]
[1727466001120,3.69325,2707.7,2707.4,0.7547]
[1727466001332,3.69311,2707.8,2707.4,0.7547]
[1727466002338,3.6932,2707.7,2707.4,0.7547]
[1727466003096,3.69299,2707.9,2707.4,0.7547]
[1727466004141,3.69318,2707.7,2707.5,0.04892648]
[1727466004497,3.69318,2707.7,2707.2,7.49607]
[1727466005026,3.69357,2707.5,2707.0,3.0]
[1727466005233,3.69357,2707.5,2707.3,0.04904175]
[1727466005234,3.69358,2707.4,2707.3,0.04904175]
[1727466005542,3.69358,2707.4,2706.9,0.8023]
[1727466005543,3.69377,2707.3,2706.9,0.8023]
[1727466005901,3.69377,2707.3,2707.0,0.04660724]
[1727466006919,3.69389,2707.2,2707.0,0.04660724]
[1727466007613,3.6941,2707.1,2706.6,3.0]
[1727466007820,3.69413,2707.0,2706.6,3.0]
[1727466008432,4.47063,2707.0,2706.5,3.766]
[1727466008672,5.287087,2707.0,2706.3,3.69508]
[1727466008822,5.287087,2707.0,2705.8,3.6957]
[1727466008823,3.58322158,2706.7,2706.0,3.6954]
[1727466009024,3.58322158,2706.7,2705.9,4.4494]
[1727466009025,3.69496,2706.4,2705.9,4.4494]
[1727466009338,3.58322158,2706.1,2705.5,3.69608]
[1727466009546,3.58322158,2706.3,2705.6,3.69603]
[1727466009757,7.27840158,2706.3,2705.6,4.435262]
[1727466009931,3.69529,2706.2,2705.6,4.435262]
[1727466010138,3.69529,2706.2,2705.4,3.69629]
[1727466010139,3.6956,2706.0,2705.4,3.69629]
[1727466010332,3.6956,2706.0,2705.2,3.69649]
[1727466010548,7.39052,2706.2,2705.4,3.6963]
[1727466010749,3.69536,2706.1,2705.5,0.36963]
[1727466011263,3.69523,2706.2,2705.5,0.36963]
[1727466011264,3.69523,2706.2,2705.6,3.696]
[1727466011426,3.6951,2706.3,2705.7,1.171763]
[1727466011618,3.695,2706.4,2705.7,1.171763]
[1727466011619,3.69526,2706.2,2705.7,1.171763]
[1727466012260,3.69526,2706.2,2705.7,0.406563]
[1727466013129,3.69543,2706.1,2705.7,0.406563]
[1727466013322,3.69543,2706.1,2705.5,1.17503]
[1727466013523,3.69526,2706.2,2705.5,1.17503]
[1727466014061,3.69526,2706.2,2705.5,4.8711]
[1727466014558,7.3906,2706.2,2705.5,4.8711]
[1727466014776,3.69543,2706.1,2705.5,4.8711]
[1727466015328,3.69553,2706.0,2705.5,1.17503]
[1727466015948,4.47663,2706.0,2705.3,3.8173]
[1727466016128,3.6959,2705.7,2705.1,0.8173]
[1727466017032,3.69618,2705.5,2705.1,0.8173]
[1727466018427,7.39194,2705.7,2705.1,0.8173]
[1727466018668,7.39194,2705.7,2705.1,4.51399]
[1727466019175,7.39194,2705.7,2705.2,0.04085654]
[1727466019373,3.69597,2705.7,2705.2,0.04085654]
[1727466019580,3.69607,2705.6,2705.2,0.04085654]
[1727466020679,3.69617,2705.5,2705.2,0.04085654]
[1727466021037,4.46507,2705.5,2705.2,0.04085654]
[1727466021767,4.46507,2705.5,2705.3,0.04079882]
[1727466022078,3.69631,2705.4,2705.3,0.04079882]
[1727466022243,3.69631,2705.4,2705.0,3.0]
[1727466022427,3.69631,2705.4,2705.3,0.04079882]
[1727466022628,4.512448,2705.4,2704.9,4.52917]
[1727466022864,3.6964,2705.4,2704.9,0.8322]
[1727466023071,3.69645,2705.3,2705.0,0.04097201]
[1727466023379,0.369645,2705.2,2705.0,0.04097201]
[1727466023680,7.39299,2705.3,2705.0,0.04097201]
[1727466023832,7.39301,2705.3,2704.7,3.69718]
[1727466024035,3.69667,2705.2,2705.1,0.04091427]
[1727466024232,4.87096316,2705.3,2704.7,3.69718]
[1727466024471,4.87096316,2705.3,2705.1,0.04091427]
[1727466024665,4.87096316,2705.3,2704.7,3.69718]
[1727466024866,3.69658,2705.2,2704.7,3.69718]
[1727466025432,3.69658,2705.2,2704.8,3.69712]
[1727466026965,3.69658,2705.2,2704.7,3.69723]
[1727466027179,7.39283,2705.4,2704.8,3.69713]
[1727466027582,3.69646,2705.3,2704.8,3.69713]
[1727466029104,3.69661,2705.2,2704.7,3.69726]
[1727466029271,7.39283,2705.4,2704.8,3.69712]
[1727466029468,3.69639,2705.4,2704.8,3.69712]
[1727466029712,4.142919,2705.4,2704.8,3.69712]
[1727466029867,3.69646,2705.3,2704.8,3.69712]
[1727466032393,3.69658,2705.2,2704.7,3.69722]
[1727466033608,3.69658,2705.2,2704.6,4.49028]
[1727466033775,7.8075909,2705.2,2704.6,8.18752]
[1727466034194,4.1108909,2705.2,2704.7,3.77711949]
[1727466034819,4.1108909,2705.2,2704.8,3.69711]
[1727466034971,3.69645,2705.3,2704.8,3.69711]
[1727466035171,3.69645,2705.3,2704.9,0.07976118]
[1727466035784,3.69659,2705.2,2704.9,0.07976118]
[1727466036989,3.69659,2705.2,2704.7,3.69725]
[1727466037190,3.69659,2705.2,2705.0,0.07970203]
[1727466037507,3.69659,2705.2,2704.7,3.69725]
[1727466037508,3.69659,2705.2,2705.1,0.07964288]
[1727466037976,3.69659,2705.2,2704.6,4.4902]
[1727466038173,3.69659,2705.2,2705.1,0.07776974]
[1727466038378,3.69705,2704.9,2704.6,0.7929]
[1727466038728,0.446529,2705.4,2703.6,0.7619]
[1727466038729,0.7844,2704.5,2703.6,0.7619]
[1727466039023,3.69834,2704.0,2703.6,0.7619]
[1727466039873,3.6985,2703.8,2703.6,0.7619]
[1727466040087,7.3971,2703.8,2703.3,0.8148]
[1727466040336,3.6985,2703.8,2703.3,0.8148]
[1727466040639,3.69892,2703.5,2703.3,0.8148]
[1727466040787,3.69904,2703.5,2703.0,0.8257]
[1727466040994,3.69911,2703.4,2703.0,0.8257]
[1727466041624,3.69921,2703.3,2703.0,0.8257]
[1727466042400,3.6994,2703.2,2703.0,0.8257]
[1727466042810,3.69914,2703.4,2703.0,0.8257]
[1727466043339,3.6984,2703.9,2703.3,0.8309]
[1727466043497,3.69849,2703.9,2703.5,3.58322158]
[1727466044044,3.69849,2703.9,2703.3,8.11328158]
[1727466044225,3.69833,2704.0,2703.4,4.08566012]
[1727466044546,7.39668,2704.0,2703.4,4.08566012]
[1727466044832,3.69863,2703.8,2703.3,0.8309]
[1727466044991,3.69929,2703.3,2702.9,0.8091]
[1727466045392,4.49717,2703.7,2702.9,0.8091]
[1727466045393,3.69931,2703.2,2702.9,0.8091]
[1727466045863,7.39873,2703.2,2702.9,0.8091]
[1727466045998,3.69878,2703.6,2702.9,0.8091]
[1727466046343,3.6994,2703.2,2702.9,0.8091]
[1727466046936,3.69939,2703.2,2702.9,0.8091]
[1727466047234,3.69885,2703.6,2703.1,3.58322158]
[1727466047444,3.69885,2703.6,2703.3,3.58322158]
[1727466047599,3.69842,2703.9,2703.5,3.58322158]
[1727466047801,3.69842,2703.9,2703.5,4.37362158]
[1727466048000,0.799,2704.0,2703.2,0.8146]
[1727466048304,0.7623,2703.7,2702.9,3.58322158]
[1727466048500,3.69925,2703.3,2703.0,0.04822641]
[1727466048898,3.69891,2703.5,2703.0,0.04822641]
[1727466049132,3.69905,2703.4,2703.1,3.58322158]
[1727466049335,3.69905,2703.4,2703.2,0.04664831]
[1727466049633,0.7623,2703.7,2703.3,3.58322158]
[1727466049838,3.69863,2703.7,2703.5,3.58322158]
[1727466050257,3.69863,2703.7,2703.6,0.04496516]
[1727466050914,3.69863,2703.7,2703.3,4.41592158]
[1727466051251,3.69884,2703.6,2703.4,0.04508359]
[1727466053058,3.69863,2703.7,2703.4,0.04508359]
[1727466053560,3.6989,2703.5,2703.4,0.04508359]
[1727466054743,0.8097,2704.0,2703.1,3.58322158]
[1727466054744,3.69852,2703.8,2703.1,3.58322158]
[1727466055060,3.69918,2703.3,2703.2,0.0452654]
[1727466056129,3.69918,2703.3,2702.9,4.40832158]
[1727466056347,3.69918,2703.3,2703.0,0.04538386]
[1727466057155,7.39818,2703.4,2703.1,3.58322158]
[1727466057363,3.69904,2703.4,2703.2,0.04561396]
[1727466057587,7.39816,2703.4,2703.2,0.04561396]
[1727466057872,3.69904,2703.4,2703.2,0.04561396]
[1727466059242,7.39818,2703.4,2703.2,0.04561396]
[1727466059444,3.69904,2703.4,2703.2,0.04561396]
[1727466059978,3.69885,2703.6,2703.3,3.58322158]
[1727466060474,3.69885,2703.6,2703.4,0.04546911]
[1727466060678,3.6989,2703.5,2703.4,0.04546911]
[1727466060879,3.69919,2703.3,2702.9,4.40832158]
[1727466061385,3.69919,2703.3,2702.5,3.58322158]
[1727466061386,0.7684,2703.2,2702.5,3.58322158]
[1727466061678,3.6998,2702.9,2702.5,3.58322158]
[1727466061840,3.69959,2703.0,2702.6,3.70012]
[1727466062047,3.69959,2703.0,2702.7,3.58322158]
[1727466062860,7.28145158,2704.0,2702.7,3.58322158]
[1727466062861,4.45532,2703.4,2703.0,0.8059]
[1727466063085,3.69919,2703.3,2703.0,0.8059]
[1727466063263,3.69934,2703.2,2703.0,0.8059]
[1727466063588,3.69934,2703.2,2702.9,3.58322158]
[1727466064153,3.69934,2703.2,2703.0,0.04443981]
[1727466064459,3.69934,2703.2,2702.8,0.8059]
[1727466064959,3.69934,2703.2,2702.9,0.04316563]
[1727466066008,3.69945,2703.1,2702.9,0.04316563]
[1727466066215,4.48004,2703.2,2702.9,0.04316563]
[1727466066582,4.48004,2703.2,2702.7,3.7]
[1727466067277,4.48004,2703.2,2702.8,0.04189068]
[1727466067477,4.48004,2703.2,2702.7,3.7]
[1727466067693,3.69934,2703.2,2702.8,3.74173068]
[1727466067887,3.69931,2703.2,2702.8,3.74173068]
[1727466068913,3.69931,2703.2,2702.8,7.32495226]
[1727466069123,3.69931,2703.2,2702.8,3.62511226]
[1727466069631,3.69918,2703.3,2702.8,7.32488226]
[1727466071030,3.69932,2703.2,2702.8,7.32488226]
[1727466072333,7.39877,2703.2,2702.8,3.62511226]
[1727466072494,3.69932,2703.2,2702.8,3.62511226]
[1727466073089,3.69932,2703.2,2702.8,7.32495226]
[1727466074722,3.69932,2703.2,2702.8,3.62511226]
[1727466075627,0.7597,2703.5,2703.0,0.7749]
[1727466075827,0.7597,2703.5,2703.1,7.28266158]
[1727466075828,3.69893,2703.5,2703.1,7.28266158]
[1727466076045,4.54199391,2704.2,2703.7,3.69856]
[1727466076046,2.29289391,2704.2,2703.7,3.69856]
[1727466076326,2.29289391,2704.2,2703.8,0.041309]
[1727466076327,3.69831,2704.0,2703.8,0.041309]
[1727466076908,3.69836,2703.9,2703.5,0.7677]
[1727466077095,3.69836,2703.9,2703.6,0.04126383]
[1727466077800,4.143231,2704.0,2703.6,0.04126383]
[1727466077801,3.6985,2703.8,2703.6,0.04126383]
[1727466078119,4.52643,2703.7,2703.6,0.04126383]
[1727466078435,3.69922,2703.3,2703.0,0.7609]
[1727466078926,3.69898,2703.5,2703.1,3.58322158]
[1727466079140,3.69898,2703.5,2703.0,0.7609]
[1727466079141,3.69872,2703.7,2703.3,3.58322158]
[1727466079436,3.69845,2703.9,2703.4,0.80528906]
[1727466079603,3.69845,2703.9,2703.4,4.50431906]
[1727466079931,7.39692,2703.9,2703.4,4.46553]
[1727466080135,3.69845,2703.9,2703.5,0.03879315]
[1727466080297,3.69852,2703.8,2703.5,0.03879315]
[1727466080633,3.69823,2704.0,2703.5,7.32085473]
[1727466080834,3.69837,2703.9,2703.5,3.62201473]
[1727466081018,7.39681,2703.9,2703.5,3.62201473]
[1727466081194,3.69837,2703.9,2703.5,3.62201473]
[1727466081398,7.3964,2704.1,2703.5,7.32090473]
[1727466081636,3.69818,2704.1,2703.5,3.62201473]
[1727466081935,3.69846,2703.9,2703.5,3.62201473]
[1727466082589,3.69846,2703.9,2703.5,7.32090473]
[1727466082793,3.69844,2703.9,2703.5,3.62201473]
[1727466083227,1.54199391,2704.1,2703.5,3.62201473]
[1727466083228,5.24023391,2704.0,2703.5,7.32083473]
[1727466083414,1.54199391,2704.0,2703.7,3.58322158]
[1727466083599,5.23994391,2704.2,2703.7,3.58322158]
[1727466083811,3.69795,2704.2,2703.9,0.7709]
[1727466084142,7.39601,2704.2,2703.9,0.7709]
[1727466084313,7.39601,2704.2,2704.0,0.03839691]
[1727466084314,3.69809,2704.1,2704.0,0.03839691]
[1727466084728,1.54199391,2704.2,2704.0,0.03839691]
[1727466084939,3.69777,2704.4,2704.1,3.58322158]
[1727466085236,3.69783,2704.3,2704.2,0.03818359]
[1727466085541,5.23982391,2704.3,2703.9,4.35412158]
[1727466085761,5.23982391,2704.3,2704.0,0.03829142]
[1727466086104,3.69783,2704.3,2704.0,0.03829142]
[1727466086950,1.54199391,2704.4,2704.0,0.03829142]
[1727466087102,3.69781,2704.3,2704.0,0.03829142]
[1727466089847,3.69767,2704.4,2704.0,0.03829142]
[1727466090139,1.54199391,2704.5,2704.2,0.7602]
[1727466090338,1.54199391,2704.7,2704.3,7.31838915]
[1727466090538,5.23921391,2704.8,2704.3,3.62063915]
[1727466090741,8.93645391,2704.8,2704.3,3.62063915]
[1727466090931,5.23921391,2704.8,2704.3,3.62063915]
[1727466091131,3.69722,2704.8,2704.3,3.62063915]
[1727466091345,3.69733,2704.7,2704.3,3.62063915]
[1727466091545,3.69733,2704.7,2704.3,0.03741757]
[1727466092232,0.89365439,2704.7,2704.3,0.03741757]
[1727466092432,3.69767,2704.4,2704.3,0.03741757]
[1727466093966,3.69767,2704.4,2704.3,0.03730685]
[1727466094166,7.39518,2704.5,2704.1,3.58322158]
[1727466094334,3.69736,2704.7,2704.3,3.58322158]
[1727466094522,5.23908391,2704.9,2704.3,3.58322158]
[1727466094523,3.69709,2704.9,2704.6,0.7876]
[1727466094728,3.69687,2705.0,2704.7,0.03707017]
[1727466094924,5.23879391,2705.1,2704.7,3.62029175]
[1727466095234,3.6968,2705.1,2704.7,3.62029175]
[1727466095651,3.69706,2704.9,2704.7,0.03707017]
[1727466095853,4.669838,2705.1,2704.7,0.03707017]
[1727466096026,3.6968,2705.1,2704.7,0.03707017]
[1727466096631,3.69694,2705.0,2704.7,0.03707017]
[1727466096828,3.697,2704.9,2704.7,0.03707017]
[1727466097744,3.69713,2704.8,2704.7,0.03707017]
[1727466097935,3.69693,2705.0,2704.5,3.69747]
[1727466098271,3.69693,2705.0,2704.6,0.03912059]
[1727466098757,3.69693,2705.0,2704.4,4.45108]
[1727466098758,3.69701,2704.9,2704.4,4.45108]
[1727466098976,3.69688,2705.0,2704.5,3.73670399]
[1727466099179,3.69699,2704.9,2704.5,3.73670399]
[1727466099364,3.69716,2704.8,2704.5,0.03918399]
[1727466100888,7.39407,2704.9,2704.5,0.03918399]
[1727466101255,3.69699,2704.9,2704.5,0.03918399]
[1727466103163,3.69699,2704.9,2704.5,3.69751]
[1727466103362,0.5641419,2705.2,2704.6,3.69738]
[1727466103585,3.69672,2705.1,2704.7,3.69725]
[1727466103962,3.69672,2705.1,2704.8,0.05087826]
[1727466104161,3.69672,2705.1,2704.7,3.69725]
[1727466104386,3.69672,2705.1,2704.8,0.05087826]
[1727466104387,4.55143251,2705.1,2704.8,0.05087826]
[1727466104589,4.55143251,2705.1,2704.7,3.69725]
[1727466104855,4.55143251,2705.1,2704.8,0.05087035]
[1727466105180,4.55143251,2705.1,2704.7,3.69725]
[1727466105385,4.55143251,2705.1,2704.8,0.05081501]
[1727466105689,4.55143251,2705.1,2704.7,3.69725]
[1727466105893,3.6966,2705.2,2704.9,0.05072628]
[1727466106097,3.69673,2705.1,2704.8,0.05078339]
[1727466106398,3.69673,2705.1,2704.9,0.82389466]
[1727466106566,3.69673,2705.1,2704.9,0.7732]
[1727466106778,3.69673,2705.1,2705.0,0.05060593]
[1727466108396,4.47635851,2705.1,2705.0,0.05060593]
[1727466111400,3.69658,2705.2,2705.0,0.05060593]
[1727466111601,3.69638,2705.4,2705.0,0.05060593]
[1727466111763,3.69638,2705.4,2705.1,3.58322158]
[1727466111966,3.69618,2705.5,2705.2,0.83330201]
[1727466112169,3.69613,2705.6,2705.2,0.83330201]
[1727466112170,3.69631,2705.4,2705.2,0.83330201]
[1727466112402,3.69612,2705.6,2705.2,0.83330201]
[1727466112602,3.69629,2705.5,2705.2,0.83330201]
[1727466113391,3.69632,2705.4,2705.2,0.83330201]
[1727466114391,3.69644,2705.3,2705.2,0.83330201]
[1727466114582,3.6963,2705.5,2705.2,0.83330201]
[1727466114898,3.69637,2705.4,2705.2,0.83330201]
[1727466115422,3.69644,2705.3,2705.2,0.83330201]
[1727466117722,3.69637,2705.4,2705.2,0.83330201]
[1727466118319,3.69631,2705.4,2705.2,0.83330201]
[1727466120427,3.69625,2705.5,2705.2,0.83330201]
[1727466120815,3.69633,2705.4,2705.2,0.83330201]
[1727466121318,3.69625,2705.5,2705.2,0.83330201]
[1727466121832,3.69624,2705.5,2705.2,0.83330201]
[1727466122036,3.6964,2705.4,2705.2,0.83330201]
[1727466122528,3.69618,2705.5,2705.2,0.83330201]
[1727466123333,3.69606,2705.6,2705.2,0.83330201]
[1727466123497,7.39219,2705.6,2705.2,0.83330201]
[1727466123691,3.69606,2705.6,2705.2,0.83330201]
[1727466124511,3.69606,2705.6,2705.2,4.52987201]
[1727466125016,3.69606,2705.6,2705.3,3.58322158]
[1727466125209,3.69606,2705.6,2705.4,0.06149988]
[1727466126724,3.69606,2705.6,2705.4,0.06149988]
[1727466127034,3.69583,2705.8,2705.5,0.8128]
[1727466127436,7.39168,2705.8,2705.6,0.06127816]
[1727466127635,3.69583,2705.8,2705.6,0.06127816]
[1727466127942,3.69583,2705.8,2705.5,0.8128]
[1727466128103,3.69596,2705.7,2705.5,0.8128]
[1727466128299,3.69596,2705.7,2705.6,0.06127816]
[1727466128700,3.69596,2705.7,2705.5,0.8128]
[1727466129146,3.69596,2705.7,2705.6,0.06127816]
[1727466129850,5.212839,2705.7,2705.6,0.06127816]
[1727466130059,10.33805449,2705.7,2705.6,0.06127816]
[1727466130341,10.33805449,2705.7,2704.8,3.69709]
[1727466130342,3.69658,2705.3,2704.8,3.69709]
[1727466130552,3.69658,2705.2,2704.8,3.69709]
[1727466130701,3.69635,2705.4,2705.0,0.7643]
[1727466130702,7.39275,2705.4,2705.0,0.7643]
[1727466131120,7.39277,2705.4,2705.1,0.05494468]
[1727466131449,3.69635,2705.4,2705.2,0.05484611]
[1727466131947,3.69652,2705.3,2705.0,0.7643]
[1727466133629,3.69635,2705.4,2705.0,0.7643]
[1727466133835,3.69644,2705.3,2705.0,0.7643]
[1727466134409,5.24393553,2705.6,2705.0,1.210419]
[1727466134641,3.69614,2705.6,2705.3,0.8181]
[1727466135141,5.24356553,2705.8,2705.3,0.8181]
[1727466135947,5.24356553,2705.8,2705.4,3.69629]
[1727466136144,3.69577,2705.8,2705.4,3.69629]
[1727466136309,5.24356553,2705.8,2705.4,3.69629]
[1727466136507,1.54779553,2705.8,2705.4,3.69629]
[1727466136746,1.54779553,2705.8,2705.4,3.6962]
[1727466137923,1.54779553,2705.8,2705.6,7.27924158]
[1727466138255,1.54779553,2706.4,2706.0,4.52545]
[1727466138418,3.69469,2706.6,2706.0,4.52545]
[1727466138419,1.54779553,2706.6,2706.1,4.40531758]
[1727466138618,1.54779553,2706.7,2706.3,3.69508]
[1727466138818,5.24222553,2706.8,2706.3,3.76897189]
[1727466139050,5.24193553,2707.0,2706.6,0.83]
[1727466139350,3.69441,2706.8,2706.6,0.83]
[1727466139922,3.69441,2706.8,2706.3,0.83]
[1727466140201,3.69441,2706.8,2706.1,0.83]
[1727466140202,3.69478,2706.6,2706.1,0.83]
[1727466140473,0.369478,2706.5,2706.1,0.83]
[1727466140910,3.69503,2706.4,2705.9,4.52628]
[1727466146057,3.69469,2706.6,2706.0,3.69537]
[1727466146220,3.69469,2706.6,2706.1,3.69533]
[1727466147121,7.38945,2706.6,2706.1,3.69526]
[1727466147353,4.064289,2706.5,2706.1,3.69526]
[1727466147681,0.369469,2706.5,2706.1,3.69526]
[1727466149040,4.064309,2706.5,2706.0,3.69548]
[1727466149555,0.369469,2706.5,2706.1,3.69535]
[1727466149759,3.69467,2706.6,2706.1,3.69535]
[1727466150063,3.69467,2706.6,2705.9,4.52624]
[1727466150064,3.69477,2706.6,2705.9,4.52624]
[1727466150228,3.69477,2706.6,2706.1,3.69533]
[1727466150559,3.69477,2706.6,2706.1,3.69526]
[1727466150737,4.516675,2706.6,2706.1,3.69526]
[1727466150936,4.516675,2706.6,2706.1,7.39055]
[1727466151243,3.69483,2706.5,2706.1,3.69526]
[1727466152153,3.69483,2706.5,2706.0,3.69548]
[1727466152465,4.5159805,2706.5,2706.0,3.69548]
[1727466153338,0.8211505,2706.5,2705.9,4.52623]
[1727466155234,4.513625,2706.3,2705.8,3.69576]
[1727466155672,0.818475,2706.3,2706.0,3.69548]